bitfinex/quotes_ETHUSD_20230113
["timestamp","ask_amount","ask_price","bid_price","bid_amount"]
[1673607155894,2.403,1415.5,1415.4,25.06684]
[1673607156151,2.403,1415.5,1415.4,45.06370242]
[1673607156312,1.05600131,1415.6,1415.4,50.42250466]
[1673607156516,1.05600131,1415.6,1415.5,10.88858432]
[1673607156726,1.05600131,1415.6,1415.5,31.09646652]
[1673607157041,1.05600131,1415.6,1415.5,34.50646652]
[1673607157678,1.05600131,1415.6,1415.5,35.55457791]
[1673607157679,1.31e-06,1415.6,1415.5,35.55457791]
[1673607158039,2.11197638,1416.0,1415.5,35.55457791]
[1673607158299,2.11197638,1416.0,1415.9,1.594]
[1673607158513,2.11197638,1416.0,1415.9,22.78192]
[1673607158663,2.11197638,1416.0,1415.9,22.84792]
[1673607159653,0.765948,1416.2,1416.0,2.0]
[1673607159872,0.699948,1416.2,1416.1,27.97125272]
[1673607160035,0.699948,1416.2,1416.1,30.73381272]
[1673607160237,0.699948,1416.2,1416.1,29.14181272]
[1673607161448,0.699948,1416.2,1416.1,30.95881272]
[1673607161609,0.699948,1416.2,1416.1,33.95881272]
[1673607164027,4.8e-05,1416.2,1416.1,33.95881272]
[1673607167197,4.8e-05,1416.2,1416.1,33.72881272]
[1673607167398,4.8e-05,1416.2,1416.1,28.53448]
[1673607169696,4.8e-05,1416.2,1416.1,25.83792]
[1673607169958,1.420048,1416.2,1416.1,0.066]
[1673607170136,1.420048,1416.2,1416.0,20.06286242]
[1673607170342,1.949748,1416.2,1416.0,20.06286242]
[1673607170535,1.949748,1416.2,1416.0,0.066]
[1673607170746,3.949748,1416.2,1415.9,7.1282]
[1673607170959,4.48474226,1416.2,1415.9,7.1282]
[1673607171169,4.48474226,1416.2,1415.9,0.066]
[1673607171431,4.48474226,1416.2,1415.9,7.06263]
[1673607171645,4.48474226,1416.2,1415.9,7.12863]
[1673607172169,11.54595226,1416.2,1415.9,0.066]
[1673607172378,1.15459523,1416.1,1415.8,20.06286242]
[1673607172568,8.21647523,1416.1,1415.8,20.06286242]
[1673607172751,8.28247523,1416.1,1415.8,20.06286242]
[1673607172964,22.40599523,1416.1,1415.8,20.06286242]
[1673607173406,5.84693224,1416.0,1415.8,6.64136242]
[1673607173634,5.84693224,1416.0,1415.5,1.592]
[1673607173635,21.49141272,1415.9,1415.5,1.592]
[1673607173855,25.20698731,1415.9,1415.8,0.002]
[1673607174026,0.70951327,1415.8,1415.2,9.334e-05]
[1673607174385,2.0,1415.6,1415.2,9.334e-05]
[1673607175055,0.5958,1415.7,1415.2,1.59209334]
[1673607175270,0.5298,1415.7,1415.3,1.582]
[1673607175643,0.5298,1415.7,1415.4,1.59]
[1673607175792,0.5298,1415.7,1415.4,8.65482]
[1673607175999,29.45098269,1415.9,1415.4,8.72082]
[1673607176000,0.5298,1415.8,1415.4,8.72082]
[1673607177511,0.5298,1415.8,1415.4,15.78596]
[1673607178203,0.5298,1415.8,1415.4,14.19596]
[1673607178348,0.5298,1415.8,1415.4,16.69713993]
[1673607178562,0.5298,1415.8,1415.4,23.76227993]
[1673607179259,0.5298,1415.8,1415.4,0.066]
[1673607179458,21.71929,1415.8,1415.3,17.13104]
[1673607179639,21.78529,1415.8,1415.3,17.19704]
[1673607179853,2.171929,1415.7,1415.3,24.26267]
[1673607180195,0.5958,1415.8,1415.5,22.78562]
[1673607180411,0.5298,1415.8,1415.6,2.0]
[1673607180565,0.5298,1415.8,1415.7,14.12728]
[1673607180930,22.4895,1415.9,1415.7,14.19328]
[1673607181103,22.4895,1415.9,1415.7,23.740929]
[1673607181312,0.066,1415.9,1415.7,23.740929]
[1673607181657,0.5957,1416.1,1415.7,23.740929]
[1673607181904,0.5297,1416.1,1415.7,25.322929]
[1673607182050,54.681748,1416.2,1415.8,15.71978]
[1673607182051,55.211448,1416.2,1415.8,15.71978]
[1673607182260,55.211448,1416.2,1415.8,18.4773229]
[1673607183116,65.87897072,1416.2,1415.8,0.066]
[1673607183346,80.00130072,1416.2,1415.7,7.12964]
[1673607183562,2.0,1416.1,1415.7,7.12964]
[1673607183767,3.60633272,1416.0,1415.7,0.066]
[1673607184089,10.86876272,1416.0,1415.6,0.066]
[1673607184242,17.99719272,1416.0,1415.5,24.25962]
[1673607184449,1.08687627,1415.9,1415.5,24.25962]
[1673607185137,3.87233272,1416.0,1415.5,25.84962]
[1673607185323,3.60633272,1416.0,1415.5,25.84962]
[1673607185513,0.066,1416.1,1415.7,22.78217]
[1673607185726,24.831448,1416.2,1415.9,21.18767]
[1673607185936,24.301748,1416.2,1415.9,21.25367]
[1673607186170,24.301748,1416.2,1415.9,14.19108]
[1673607187178,27.50610326,1416.2,1415.9,7.12854]
[1673607187656,38.17357598,1416.2,1415.9,0.066]
[1673607187964,19.22999272,1416.1,1415.8,0.066]
[1673607188130,19.29599272,1416.1,1415.7,7.12939]
[1673607188345,1.92299927,1416.0,1415.7,7.12939]
[1673607188803,12.59149199,1416.0,1415.7,0.066]
[1673607188975,12.65749199,1416.0,1415.7,3.0]
[1673607189195,3.2657492,1415.9,1415.6,7.1298]
[1673607189571,1.7955492,1415.9,1415.6,7.1298]
[1673607189707,1.2657492,1415.9,1415.6,7.1298]
[1673607190340,3.2657492,1415.9,1415.6,7.1298]
[1673607190675,7.38987492,1415.8,1415.6,0.066]
[1673607191011,15.04897492,1415.8,1415.3,7.13136]
[1673607191204,2.0,1415.7,1415.3,7.13136]
[1673607191544,9.06374,1415.7,1415.3,7.13136]
[1673607191759,9.06374,1415.7,1415.3,0.066]
[1673607191760,0.906374,1415.6,1415.3,0.066]
[1673607191917,0.906374,1415.6,1415.2,7.13222334]
[1673607192582,0.906374,1415.6,1415.2,14.19835334]
[1673607193133,0.906374,1415.6,1415.2,14.24835334]
[1673607194750,7.970524,1415.6,1415.2,14.24835334]
[1673607195070,0.972374,1415.6,1415.2,14.19835334]
[1673607195277,7.970544,1415.6,1415.2,7.13222334]
[1673607195494,15.100714,1415.6,1415.2,7.13222334]
[1673607195709,1.5100714,1415.5,1415.2,7.13222334]
[1673607195946,1.50631985,1415.5,1415.2,0.06609334]
[1673607196296,1.50631985,1415.5,1415.2,9.334e-05]
[1673607196297,2.0,1415.4,1415.2,9.334e-05]
[1673607197148,8.63697985,1415.5,1415.2,9.334e-05]
[1673607197285,2.0,1415.4,1415.2,9.334e-05]
[1673607198335,3.06369798,1415.4,1415.2,9.334e-05]
[1673607199075,10.12885798,1415.4,1415.2,9.334e-05]
[1673607199287,10.19485798,1415.4,1415.2,9.334e-05]
[1673607199493,17.78991798,1415.4,1415.2,9.334e-05]
[1673607200291,21.3962507,1415.4,1415.2,9.334e-05]
[1673607200600,2.13962507,1415.3,1415.2,9.334e-05]
[1673607201193,9.20525507,1415.3,1415.2,9.334e-05]
[1673607201396,9.27125507,1415.3,1415.2,9.334e-05]
[1673607202666,11.27125507,1415.3,1415.2,9.334e-05]
[1673607202875,29.23884779,1415.3,1415.2,9.334e-05]
[1673607203218,34.36284779,1415.3,1415.2,9.334e-05]
[1673607203807,38.90924183,1415.3,1415.2,9.334e-05]
[1673607204017,34.36284779,1415.3,1415.2,9.334e-05]
[1673607204264,38.90924183,1415.3,1415.2,9.334e-05]
[1673607204596,34.36284779,1415.3,1415.2,9.334e-05]
[1673607205487,32.76884779,1415.3,1415.2,9.334e-05]
[1673607206482,30.76884779,1415.3,1415.2,9.334e-05]
[1673607208905,32.36284779,1415.3,1415.2,9.334e-05]
[1673607210169,5.81195779,1415.3,1415.2,9.334e-05]
[1673607210378,3.67233272,1415.3,1415.2,9.334e-05]
[1673607210573,3.60633272,1415.3,1415.2,9.334e-05]
[1673607210751,10.67196272,1415.3,1415.2,9.334e-05]
[1673607210965,10.73796272,1415.3,1415.2,9.334e-05]
[1673607211501,4.20233272,1415.3,1415.2,9.334e-05]
[1673607211718,15.36725379,1415.3,1415.2,9.334e-05]
[1673607212065,15.43325379,1415.3,1415.2,9.334e-05]
[1673607212234,22.49888379,1415.3,1415.2,9.334e-05]
[1673607212431,29.56451379,1415.3,1415.2,9.334e-05]
[1673607213934,15.43325379,1415.3,1415.2,9.334e-05]
[1673607214536,22.49888379,1415.3,1415.2,9.334e-05]
[1673607215000,22.72888379,1415.3,1415.2,9.334e-05]
[1673607215901,26.97988379,1415.3,1415.2,9.334e-05]
[1673607216114,34.38851379,1415.3,1415.2,9.334e-05]
[1673607216327,43.18459405,1415.3,1415.2,9.334e-05]
[1673607216870,43.89410732,1415.3,1415.2,9.334e-05]
[1673607217102,39.34902706,1415.3,1415.2,9.334e-05]
[1673607217331,43.8954211,1415.3,1415.2,9.334e-05]
[1673607217530,39.34902706,1415.3,1415.2,9.334e-05]
[1673607218052,2.00302425,1415.2,1415.0,0.05200697]
[1673607218210,27.36062515,1415.1,1415.0,0.05200697]
[1673607218422,27.42662515,1415.1,1415.0,0.05200697]
[1673607218653,36.56701919,1415.1,1415.0,0.05200697]
[1673607219003,32.01832924,1415.1,1415.0,0.05200697]
[1673607219213,30.42432924,1415.1,1415.0,0.05200697]
[1673607220986,34.97072328,1415.1,1415.0,0.05200697]
[1673607221156,30.42432924,1415.1,1415.0,0.05200697]
[1673607222014,32.01832924,1415.1,1415.0,0.05200697]
[1673607223174,40.81572328,1415.1,1415.0,0.05200697]
[1673607223394,36.26932924,1415.1,1415.0,0.05200697]
[1673607226173,41.52523655,1415.1,1415.0,0.05200697]
[1673607227252,36.97884251,1415.1,1415.0,0.05200697]
[1673607228568,28.30022924,1415.1,1415.0,0.05200697]
[1673607229109,17.80329681,1415.1,1415.0,0.05200697]
[1673607229259,3.67003681,1415.1,1415.0,0.05200697]
[1673607229458,3.60403681,1415.1,1415.0,0.05200697]
[1673607230767,10.67066681,1415.1,1415.0,0.05200697]
[1673607230965,17.80329681,1415.1,1415.0,0.05200697]
[1673607231142,10.73666681,1415.1,1415.0,0.05200697]
[1673607231602,3.67003681,1415.1,1415.0,0.05200697]
[1673607231787,3.60403681,1415.1,1415.0,0.05200697]
[1673607232416,15.51714425,1415.2,1415.0,0.05200697]
[1673607232417,7.13534425,1415.2,1415.0,0.05200697]
[1673607232611,0.06902425,1415.2,1415.0,15.98984059]
[1673607232828,0.00302425,1415.2,1415.0,16.05584059]
[1673607233049,0.00302425,1415.2,1415.0,23.12297059]
[1673607233518,0.00302425,1415.2,1415.0,16.05584059]
[1673607233883,0.00302425,1415.2,1415.0,8.98871059]
[1673607234237,0.00302425,1415.2,1415.1,0.89887106]
[1673607235060,0.00302425,1415.2,1415.1,2.89887106]
[1673607235272,0.00302425,1415.2,1415.1,9.96550106]
[1673607235558,0.00302425,1415.2,1415.1,10.03150106]
[1673607236324,0.00302425,1415.2,1415.1,24.16476106]
[1673607236529,0.00302425,1415.2,1415.1,25.75676106]
[1673607237135,0.00302425,1415.2,1415.1,27.10510886]
[1673607237552,1.12089881,1415.6,1415.1,30.71144158]
[1673607237767,0.066,1415.7,1415.2,12.01341812]
[1673607238014,0.066,1415.9,1415.3,32.21940233]
[1673607238206,25.80553464,1416.0,1415.4,4.3482032]
[1673607238395,25.80553464,1416.0,1415.5,21.19289]
[1673607238605,1.44181188,1415.9,1415.5,7.13024]
[1673607238811,2.0,1415.8,1415.5,9.007958]
[1673607239025,1.12089881,1415.9,1415.5,9.007958]
[1673607239296,3.05489881,1415.9,1415.5,9.007958]
[1673607239598,35.74874464,1416.0,1415.5,16.072598]
[1673607239773,3.60633272,1415.8,1415.5,16.072598]
[1673607239988,3.60633272,1415.8,1415.5,23.137238]
[1673607240199,0.066,1415.9,1415.6,1.592]
[1673607240409,3.60633272,1415.9,1415.7,14.12728]
[1673607240758,3.60633272,1415.9,1415.7,21.25692]
[1673607241139,25.80553464,1416.0,1415.7,21.25692]
[1673607241348,29.41186736,1416.0,1415.7,21.25692]
[1673607241692,29.41186736,1416.0,1415.7,9.414532]
[1673607241906,3.60633272,1415.9,1415.7,0.066]
[1673607242123,11.72393153,1415.9,1415.6,0.066]
[1673607242278,11.78993153,1415.9,1415.5,7.13024]
[1673607242488,5.60633272,1415.8,1415.5,7.13024]
[1673607242711,3.67233272,1415.8,1415.5,7.13024]
[1673607242926,3.60633272,1415.8,1415.5,7.13024]
[1673607243225,5.60633272,1415.8,1415.5,7.13024]
[1673607243430,5.67233272,1415.8,1415.5,7.13024]
[1673607243640,12.73547272,1415.8,1415.5,0.066]
[1673607243896,29.54789899,1415.8,1415.3,21.82278]
[1673607244144,3.60633272,1415.7,1415.3,21.82278]
[1673607244315,10.67004272,1415.7,1415.3,14.19668]
[1673607244497,13.74386562,1415.7,1415.3,14.19668]
[1673607244698,2.0,1415.6,1415.3,14.19668]
[1673607244904,5.60633272,1415.6,1415.3,7.13134]
[1673607245114,5.67233272,1415.6,1415.3,7.13134]
[1673607245469,3.60633272,1415.5,1415.3,0.066]
[1673607245638,3.60633272,1415.5,1415.0,0.11800697]
[1673607245639,18.32769599,1415.4,1415.0,0.11800697]
[1673607245851,18.32769599,1415.4,1415.0,0.05200697]
[1673607245852,5.60633272,1415.3,1415.0,0.05200697]
[1673607246111,3.60633272,1415.2,1415.0,0.05200697]
[1673607246481,3.60633272,1415.2,1415.1,0.29882215]
[1673607248375,10.67246272,1415.2,1415.1,0.29882215]
[1673607248582,13.42548999,1415.2,1415.1,0.29882215]
[1673607249012,27.78774999,1415.2,1415.1,0.29882215]
[1673607250051,0.066,1415.2,1415.1,0.29882215]
[1673607250290,5.02633272,1415.2,1415.1,0.29882215]
[1673607250506,12.15846272,1415.2,1415.0,0.05200697]
[1673607250685,19.22459272,1415.2,1415.0,0.05200697]
[1673607250898,3.60633272,1415.1,1415.0,0.05200697]
[1673607251664,2.066,1415.2,1415.0,0.05200697]
[1673607251842,3.60633272,1415.2,1415.0,0.05200697]
[1673607252475,5.60633272,1415.2,1415.0,0.05200697]
[1673607252697,5.67233272,1415.2,1415.0,0.05200697]
[1673607252942,3.67233272,1415.2,1415.0,0.05200697]
[1673607253149,3.60633272,1415.2,1415.0,0.05200697]
[1673607253363,10.67249272,1415.2,1415.0,0.05200697]
[1673607253559,10.73849272,1415.2,1415.0,0.05200697]
[1673607254683,11.26849272,1415.2,1415.0,0.05200697]
[1673607255469,11.26849272,1415.2,1415.1,0.30353957]
[1673607255628,13.80849799,1415.2,1415.1,0.30353957]
[1673607255838,15.80849799,1415.2,1415.1,0.30353957]
[1673607256801,22.87465799,1415.2,1415.1,0.30353957]
[1673607257849,20.87465799,1415.2,1415.1,0.30353957]
[1673607258988,21.10465799,1415.2,1415.1,0.30353957]
[1673607260315,11.49849272,1415.2,1415.1,0.30353957]
[1673607261144,4.43233272,1415.2,1415.1,0.30353957]
[1673607261306,4.13633272,1415.2,1415.1,0.30353957]
[1673607262377,35.96356,1415.3,1415.1,7.37016957]
[1673607262378,21.8318,1415.3,1415.1,7.37016957]
[1673607262611,21.8318,1415.3,1415.1,23.73165022]
[1673607264570,0.066,1415.3,1415.1,23.73165022]
[1673607264799,42.10105881,1415.6,1415.1,23.73165022]
[1673607265038,3.60633272,1415.5,1415.1,23.72961309]
[1673607265189,25.10683272,1415.6,1415.3,14.13116]
[1673607265399,21.5005,1415.6,1415.3,25.124698]
[1673607265657,0.066,1415.6,1415.5,7.06464]
[1673607265819,2.73592755,1415.8,1415.5,7.13064]
[1673607266029,3.60633272,1415.7,1415.5,7.13064]
[1673607266449,3.60633272,1415.6,1415.5,0.066]
[1673607266694,3.60633272,1415.6,1415.3,8.72118]
[1673607267111,3.60633272,1415.6,1415.3,15.78681]
[1673607268311,3.60633272,1415.6,1415.3,22.85244]
[1673607268478,3.60633272,1415.6,1415.3,25.137684]
[1673607268682,1.12089881,1415.7,1415.3,25.137684]
[1673607268931,3.60633272,1415.7,1415.3,25.137684]
[1673607269141,3.60633272,1415.6,1415.3,14.19681]
[1673607269787,2.7048811,1415.7,1415.3,21.26244]
[1673607269998,4.66123153,1415.7,1415.4,1.584]
[1673607270155,2.80192755,1415.8,1415.5,21.35232]
[1673607270365,52.86779881,1415.9,1415.6,1.59]
[1673607270605,26.09413153,1415.9,1415.7,7.06364]
[1673607270823,26.09413153,1415.9,1415.7,7.12964]
[1673607271572,26.09413153,1415.9,1415.8,0.25733671]
[1673607271728,26.75678375,1415.9,1415.8,0.25733671]
[1673607272513,22.71604448,1415.9,1415.8,0.25733671]
[1673607272726,15.65397144,1415.9,1415.8,0.25733671]
[1673607273045,7.53586567,1415.9,1415.8,0.25733671]
[1673607273229,8.59133549,1415.9,1415.8,0.25733671]
[1673607273421,11.74302496,1415.9,1415.8,0.25733671]
[1673607274369,9.65904267,1415.9,1415.8,0.25733671]
[1673607274615,16.72168267,1415.9,1415.8,0.25733671]
[1673607274788,16.95168267,1415.9,1415.8,0.25733671]
[1673607277717,24.01432267,1415.9,1415.8,0.25733671]
[1673607278033,22.8626332,1415.9,1415.8,0.25733671]
[1673607278240,24.01356461,1415.9,1415.8,0.25733671]
[1673607279712,25.5975469,1415.9,1415.8,0.25733671]
[1673607280179,24.01356461,1415.9,1415.8,0.25733671]
[1673607281222,31.60471708,1415.9,1415.8,0.25733671]
[1673607281435,32.65965898,1415.9,1415.8,0.25733671]
[1673607281652,31.60471708,1415.9,1415.8,0.25733671]
[1673607282655,0.22640648,1415.7,1415.4,0.066]
[1673607282870,0.22640648,1415.7,1415.3,29.54289]
[1673607282871,3.60633272,1415.6,1415.3,29.54289]
[1673607283080,3.60633272,1415.5,1415.3,7.13123]
[1673607283316,5.60633272,1415.5,1415.3,0.066]
[1673607283508,12.73711272,1415.5,1415.4,0.50065605]
[1673607283729,14.71720799,1415.5,1415.4,0.50065605]
[1673607284335,22.01184799,1415.5,1415.4,0.50065605]
[1673607284656,5.88242799,1415.5,1415.1,14.13303]
[1673607284915,3.83633272,1415.4,1415.1,14.19903]
[1673607285092,3.60633272,1415.3,1415.1,14.19903]
[1673607285440,0.066,1415.4,1415.1,16.63290948]
[1673607285662,3.60633272,1415.4,1415.1,16.63290948]
[1673607286019,3.60633272,1415.4,1415.1,23.69953948]
[1673607287092,3.60324273,1415.4,1415.1,23.69953948]
[1673607288645,0.066,1415.5,1415.1,25.29353948]
[1673607288858,38.52794915,1415.7,1415.2,4.12135395]
[1673607288859,29.94744355,1415.7,1415.2,4.12135395]
[1673607289076,29.94744355,1415.7,1415.3,21.19636]
[1673607289077,33.55377627,1415.7,1415.3,21.19636]
[1673607289292,33.55377627,1415.7,1415.3,21.26236]
[1673607289516,33.55377627,1415.7,1415.4,9.191136]
[1673607289855,33.55377627,1415.7,1415.4,9.257136]
[1673607290593,47.68124627,1415.7,1415.4,2.192236]
[1673607290745,40.61741627,1415.7,1415.3,14.19685]
[1673607291279,40.61741627,1415.7,1415.3,21.26248]
[1673607292353,0.5299,1415.6,1415.3,21.26248]
[1673607292525,33.55371627,1415.7,1415.3,21.26248]
[1673607292526,25.9648392,1415.7,1415.3,22.84548]
[1673607292737,25.9648392,1415.7,1415.4,2.284548]
[1673607293000,25.9648392,1415.7,1415.5,21.19392]
[1673607293198,25.9648392,1415.7,1415.5,21.25992]
[1673607296633,25.4350392,1415.7,1415.5,21.25992]
[1673607299890,25.4350392,1415.7,1415.5,7.13064]
[1673607300149,25.4350392,1415.7,1415.5,0.066]
[1673607300150,8.14983664,1415.6,1415.5,0.066]
[1673607300460,8.14983664,1415.6,1415.3,7.06539]
[1673607300461,17.10214312,1415.6,1415.3,7.13139]
[1673607300678,3.60633272,1415.5,1415.3,7.13139]
[1673607301576,4.66136979,1415.5,1415.3,7.13139]
[1673607301811,4.66136979,1415.5,1415.3,0.066]
[1673607301812,3.60633272,1415.4,1415.3,0.066]
[1673607302152,12.67147272,1415.4,1415.1,0.066]
[1673607302317,12.67147272,1415.4,1415.0,18.3208262]
[1673607302318,3.60633272,1415.3,1415.0,18.3208262]
[1673607302530,3.60633272,1415.3,1415.1,0.88782207]
[1673607303511,3.60633272,1415.2,1415.0,0.13907481]
[1673607303723,3.60633272,1415.1,1415.0,0.07307481]
[1673607304046,0.066,1415.2,1415.0,0.07307481]
[1673607304276,39.37395119,1415.4,1415.0,8.75025771]
[1673607304277,35.64034267,1415.4,1415.0,8.75025771]
[1673607304417,3.60633272,1415.3,1415.0,0.13907481]
[1673607304757,3.60633272,1415.2,1415.0,14.20686481]
[1673607304958,3.60633272,1415.2,1415.0,14.27286481]
[1673607305167,3.60633272,1415.2,1415.0,7.20581481]
[1673607305389,0.53,1415.2,1415.0,7.20581481]
[1673607305570,0.066,1415.4,1415.2,21.19839]
[1673607305802,1.05503707,1415.5,1415.2,21.26439]
[1673607305997,3.60633272,1415.5,1415.2,21.26439]
[1673607309693,26.09888966,1415.6,1415.2,21.26439]
[1673607310044,29.70522238,1415.6,1415.2,23.72589829]
[1673607310260,36.76938238,1415.6,1415.2,23.72589829]
[1673607311330,5.66045931,1415.5,1415.2,16.65976829]
[1673607311543,4.72736979,1415.5,1415.2,16.65976829]
[1673607311712,4.66136979,1415.5,1415.2,16.65976829]
[1673607312059,4.66136979,1415.5,1415.2,23.72589829]
[1673607313109,3.60633272,1415.5,1415.3,2.37258983]
[1673607313314,3.60633272,1415.5,1415.3,16.50351983]
[1673607313589,3.60633272,1415.5,1415.3,14.49285186]
[1673607314173,31.75895267,1415.6,1415.3,21.55848186]
[1673607314174,26.09985068,1415.6,1415.3,21.55848186]
[1673607314320,25.13363272,1415.6,1415.3,23.14848186]
[1673607314535,25.13363272,1415.6,1415.4,2.31484819]
[1673607314782,25.13363272,1415.6,1415.5,7.06464]
[1673607314994,0.066,1415.6,1415.5,21.25992]
[1673607315209,4.79882986,1415.7,1415.5,22.85392]
[1673607315210,0.22640648,1415.7,1415.5,22.85392]
[1673607316220,0.22640648,1415.7,1415.5,21.25992]
[1673607316465,0.22640648,1415.7,1415.5,24.25139]
[1673607317008,0.22640648,1415.7,1415.5,17.18675]
[1673607317160,0.22640648,1415.7,1415.5,10.12211]
[1673607318119,0.22640648,1415.7,1415.5,17.18675]
[1673607318522,0.22640648,1415.7,1415.5,10.12211]
[1673607318733,0.22640648,1415.7,1415.5,7.13064]
[1673607320262,0.22640648,1415.7,1415.5,14.19528]
[1673607320572,0.22640648,1415.7,1415.5,21.25992]
[1673607321189,0.22640648,1415.7,1415.5,22.84192]
[1673607321398,0.22640648,1415.7,1415.6,1.594]
[1673607321626,0.22640648,1415.7,1415.6,25.071812]
[1673607321838,0.22640648,1415.7,1415.6,25.137812]
[1673607322015,0.22640648,1415.7,1415.6,25.87945488]
[1673607322226,0.22640648,1415.7,1415.6,25.137812]
[1673607322439,0.22640648,1415.7,1415.6,25.87945218]
[1673607322679,0.22640648,1415.7,1415.6,25.87945723]
[1673607323695,0.22640648,1415.7,1415.6,28.33356862]
[1673607324158,0.22640648,1415.7,1415.6,29.71468382]
[1673607324428,0.22640648,1415.7,1415.6,27.28545723]
[1673607326432,0.22640648,1415.7,1415.6,28.66657243]
[1673607326675,0.22640648,1415.7,1415.6,27.28545723]
[1673607327102,0.22640648,1415.7,1415.6,29.67445723]
[1673607327311,0.22640648,1415.7,1415.6,31.05557243]
[1673607327697,0.22640648,1415.7,1415.6,29.67445723]
[1673607327909,0.22640648,1415.7,1415.6,31.05557243]
[1673607329321,0.22640648,1415.7,1415.6,35.71001654]
[1673607329482,0.14425354,1416.0,1415.8,28.25256]
[1673607329692,0.14425354,1416.0,1415.9,30.197176]
[1673607329950,0.14425354,1416.0,1415.9,31.446176]
[1673607330533,0.14425354,1416.0,1415.9,32.23247312]
[1673607330791,0.14425354,1416.0,1415.9,32.19337312]
[1673607331498,0.14425354,1416.0,1415.9,35.79970584]
[1673607332052,0.14425354,1416.0,1415.9,35.05250872]
[1673607332685,3.54e-06,1416.0,1415.9,35.05250872]
[1673607333062,3.54e-06,1416.0,1415.9,28.263176]
[1673607333296,3.54e-06,1416.0,1415.9,27.079176]
[1673607339805,3.54e-06,1416.0,1415.9,28.274176]
[1673607339996,3.54e-06,1416.0,1415.9,31.88050872]
[1673607340657,3.54e-06,1416.0,1415.9,33.06850872]
[1673607342965,3.54e-06,1416.0,1415.9,29.462176]
[1673607346404,3.54e-06,1416.0,1415.9,28.274176]
[1673607347247,0.15128823,1416.1,1416.0,1.04099646]
[1673607347502,0.15128823,1416.1,1416.0,28.24983406]
[1673607347676,0.15128823,1416.1,1416.0,31.31583406]
[1673607348341,0.15128823,1416.1,1416.0,32.50683406]
[1673607348535,0.15155462,1416.3,1416.1,2.0]
[1673607348750,0.15155462,1416.3,1416.2,31.87056]
[1673607348922,0.15155462,1416.3,1416.2,31.93656]
[1673607349135,0.15155462,1416.3,1416.2,34.93656]
[1673607349815,0.15155462,1416.3,1416.2,31.51056]
[1673607350035,0.15155462,1416.3,1416.2,31.31056]
[1673607350199,2.95155462,1416.3,1416.2,24.24942]
[1673607350400,2.95155462,1416.3,1416.2,21.24942]
[1673607350890,0.15155462,1416.3,1416.2,21.24942]
[1673607357179,2.95155462,1416.3,1416.2,21.24942]
[1673607357397,3.26089529,1416.3,1416.2,14.18828]
[1673607357554,3.26089529,1416.3,1416.2,21.24942]
[1673607357761,1.57155462,1416.3,1416.2,21.24942]
[1673607357979,0.15155462,1416.3,1416.2,21.24942]
[1673607358547,1.57155462,1416.3,1416.2,21.24942]
[1673607358699,1.57155462,1416.3,1416.2,21.51948134]
[1673607359995,1.57155462,1416.3,1416.2,0.33606134]
[1673607359996,5.17788734,1416.3,1416.2,0.33606134]
[1673607360210,8.50644157,1416.3,1416.2,0.27006134]
[1673607360380,17.80586259,1416.3,1416.2,0.27006134]
[1673607360606,30.02918288,1416.3,1416.0,0.00199646]
[1673607360858,1.194,1416.1,1416.0,0.00199646]
[1673607361087,8.00552599,1416.1,1416.0,0.00199646]
[1673607361380,16.55624628,1416.1,1416.0,0.00199646]
[1673607361764,17.61196717,1416.1,1416.0,0.00199646]
[1673607361976,42.42437652,1416.1,1416.0,0.00199646]
[1673607362187,50.88205501,1416.1,1416.0,0.00199646]
[1673607362411,52.46461061,1416.1,1416.0,0.00199646]
[1673607363027,2.0,1416.0,1415.6,0.066]
[1673607363266,1.195,1415.7,1415.5,7.13059]
[1673607363429,1.195,1415.6,1415.5,7.13059]
[1673607363640,1.3145,1415.6,1415.5,7.70629945]
[1673607363891,1.3145,1415.6,1415.5,0.066]
[1673607364105,1.3145,1415.6,1415.4,7.13082]
[1673607365899,0.5299,1415.5,1415.4,7.13082]
[1673607366122,0.5299,1415.5,1415.4,7.70639582]
[1673607366266,1.8444,1415.6,1415.4,7.70639582]
[1673607366480,1.8444,1415.6,1415.4,0.066]
[1673607366481,2.93145,1415.5,1415.4,0.066]
[1673607366734,2.93145,1415.5,1415.4,0.57566239]
[1673607366949,7.72778272,1415.5,1415.3,0.066]
[1673607367159,4.37911099,1415.4,1415.2,8.17991139]
[1673607367322,4.37911099,1415.4,1415.3,0.57574239]
[1673607367756,4.90901099,1415.4,1415.3,0.57574239]
[1673607368108,4.37911099,1415.4,1415.2,8.17991139]
[1673607368474,5.57611099,1415.4,1415.2,7.1298]
[1673607368722,5.63819128,1415.4,1415.2,7.1318]
[1673607369062,5.63819128,1415.4,1415.2,22.31217139]
[1673607369063,0.06408029,1415.4,1415.2,22.31217139]
[1673607369391,10.581,1415.6,1415.4,21.19542]
[1673607369392,0.02480592,1415.6,1415.4,21.19542]
[1673607369536,24.1769,1415.7,1415.4,21.26142]
[1673607369537,23.67190592,1415.7,1415.4,21.26142]
[1673607370338,0.02480592,1415.7,1415.6,23.19242]
[1673607370651,0.5298,1415.9,1415.6,25.877662]
[1673607370652,22.4412,1415.9,1415.6,25.877662]
[1673607370863,0.02480592,1415.9,1415.6,25.877662]
[1673607371078,22.4412,1416.0,1415.6,28.12077339]
[1673607371236,22.46600592,1416.0,1415.7,5.81207734]
[1673607371441,22.46600592,1416.0,1415.8,21.18942]
[1673607371762,22.46600592,1416.0,1415.8,22.44842]
[1673607372010,22.46600592,1416.0,1415.8,25.38213576]
[1673607372758,22.46600592,1416.0,1415.8,32.44527576]
[1673607372759,0.02480592,1416.0,1415.8,32.44527576]
[1673607372929,0.5296,1416.2,1415.9,15.32028]
[1673607372930,24.0615,1416.2,1415.9,15.32028]
[1673607373140,23.58630592,1416.2,1415.9,15.38628]
[1673607373350,23.58630592,1416.2,1416.1,14.12328]
[1673607373557,0.02480592,1416.2,1416.1,14.18928]
[1673607373786,0.68115462,1416.3,1416.1,14.18928]
[1673607374010,4.28748734,1416.3,1416.1,14.18928]
[1673607374767,4.28748734,1416.3,1416.2,0.53582411]
[1673607376695,4.28748734,1416.3,1416.2,7.59696411]
[1673607376905,4.28748734,1416.3,1416.2,7.66296411]
[1673607377378,0.16665802,1416.4,1416.2,7.66296411]
[1673607377593,0.5296,1416.3,1416.2,7.66296411]
[1673607378708,4.27778482,1416.4,1416.2,7.66296411]
[1673607379984,3.74818482,1416.4,1416.2,7.66296411]
[1673607380863,3.74818482,1416.4,1416.2,14.72410411]
[1673607381020,3.24818482,1416.4,1416.2,14.72410411]
[1673607382490,3.24818482,1416.4,1416.2,21.78524411]
[1673607384791,3.24818482,1416.4,1416.2,14.72410411]
[1673607384792,5.51180734,1416.4,1416.2,14.72410411]